Workbook

Sheet Revisions to Milton
A1: Region of Halton Draft Preferred Growth Concept- Revision (November 3, 2021)
A2: Housing Growth, Population, Employment and Employment Growth by Policy Areas and Local Municipal Sub-Areas
A4: Milton | B4: Housing Unit Growth | G4: Population | AB4: Employment
B5: 2021-31 | C5: 2031-41 | D5: 2041-51 | G5: 2016 | J5: 2021 | M5: 2031 | P5: 2041 | R5: 2051 | T5: 2021-31 | W5: 2031-41 | Z5: 2041-51 | AB5: 2016 | AD5: 2021 | AG5: 2031 | AJ5: 2041 | AM5: 2051 | AP5: 2021-31 | AR5: 2031-41 | AU5: 2041-51
A6: Existing DGA | B6: 14930 | C6: 13170 | D6: 6790 | G6: 48920 | J6: 66590 | M6: 104550 | P6: 166270 | R6: 188260 | T6: 53080 | W6: 46600 | Z6: 21990 | AB6: 8510 | AD6: 10090 | AG6: 27270 | AJ6: 47220 | AM6: 57040 | AP6: 17180 | AR6: 19950 | AU6: 9820
A7: New DGA | B7: 0 | C7: 4296 | D7: 6444 | G7: 730 | J7: 760 | M7: 760 | P7: 740 | R7: 42550 | T7: 0 | W7: 10332 | Z7: 15498 | AB7: 100 | AD7: 150 | AG7: 150 | AJ7: 1250 | AM7: 17450 | AP7: 0 | AR7: 1100 | AU7: 16200
A8: Rural | B8: 100 | C8: 100 | D8: 100 | G8: 8390 | J8: 8870 | M8: 9250 | P8: 9320 | R8: 9730 | T8: 380 | W8: 60 | Z8: 410 | AB8: 3050 | AD8: 3860 | AG8: 3970 | AJ8: 4010 | AM8: 4110 | AP8: 110 | AR8: 30 | AU8: 110
A9: BUA Centres | B9: 2960 | C9: 2950 | D9: 2690 | G9: 1830 | J9: 2500 | M9: 8430 | P9: 14540 | R9: 20180 | T9: 5930 | W9: 6110 | Z9: 5630 | AB9: 4570 | AD9: 5770 | AG9: 9030 | AJ9: 13310 | AM9: 17700 | AP9: 3260 | AR9: 4280 | AU9: 4380
A10: BUA Corridors | B10: 510 | C10: 510 | D10: 570 | G10: 0 | J10: 0 | M10: 1210 | P10: 2530 | R10: 4030 | T10: 1210 | W10: 1320 | Z10: 1490 | AB10: 0 | AD10: 0 | AG10: 1490 | AJ10: 3050 | AM10: 4860 | AP10: 1490 | AR10: 1560 | AU10: 1810
A11: BUA General | B11: 1230 | C11: 1410 | D11: 1700 | G11: 54410 | J11: 59270 | M11: 62680 | P11: 64620 | R11: 69790 | T11: 3410 | W11: 1930 | Z11: 5180 | AB11: 23250 | AD11: 24530 | AG11: 26260 | AJ11: 27070 | AM11: 28980 | AP11: 1730 | AR11: 810 | AU11: 1910
A12: Milton | B12: =SUM(B6:B11) -> 19730 | C12: =SUM(C6:C11) -> 22436 | D12: =SUM(D6:F11) -> 18294 | G12: =SUM(G6:I11) -> 114280 | J12: =SUM(J6:L11) -> 137990 | M12: =SUM(M6:O11) -> 186880 | P12: =SUM(P6:Q11) -> 258020 | R12: =SUM(R6:S11) -> 334540 | T12: =SUM(T6:V11) -> 64010 | W12: =SUM(W6:Y11) -> 66352 | Z12: =SUM(Z6:AA11) -> 50198 | AB12: 39500 | AD12: 44400 | AG12: 68200 | AJ12: 95900 | AM12: 130100 | AP12: 23800 | AR12: 27700 | AU12: 34200
A14: Region of Halton Draft Preferred Growth Concept- Revision (November 3, 2021)
A15: Housing Growth, Population, Employment and Employment Growth by Policy Areas and Local Municipal Sub-Areas
A16: Milton | F16: Housing Unit Growth | O16: Population | Z16: Population Growth | AF16: Employment | AS16: Employment Growth
F17: 2021-31 | I17: 2031-41 | L17: 2041-51 | O17: 2016 | Q17: 2021 | S17: 2031 | U17: 2041 | X17: 2051 | Z17: 2021-31 | AB17: 2031-41 | AD17: 2041-51 | AF17: 2016 | AI17: 2021 | AL17: 2031 | AO17: 2041 | AQ17: 2051 | AS17: 2021-31 | AV17: 2031-41 | AY17: 2041-51
A19: Bristol Community DGA | F19: 260 | I19: 120 | L19: 220 | O19: 15430 | Q19: 16870 | S19: 17490 | U19: 17110 | X19: 17590 | Z19: 610 | AB19: -380 | AD19: 480 | AF19: 1720 | AI19: 2030 | AL19: 2380 | AO19: 2510 | AQ19: 2700 | AS19: 340 | AV19: 140 | AY19: 190
A20: Boyne Community DGA | F20: 8240 | I20: 1250 | L20: 460 | O20: 520 | Q20: 13150 | S20: 35380 | U20: 46870 | X20: 48090 | Z20: 29300 | AB20: 4430 | AD20: 1220 | AF20: 220 | AI20: 270 | AL20: 2400 | AO20: 3890 | AQ20: 4240 | AS20: 2130 | AV20: 1490 | AY20: 340
A21: Sherwood Community DGA | F21: 460 | I21: 380 | L21: 270 | O21: 32420 | Q21: 35990 | S21: 37390 | U21: 36980 | X21: 37590 | Z21: 1400 | AB21: -410 | AD21: 610 | AF21: 3610 | AI21: 5940 | AL21: 6220 | AO21: 6280 | AQ21: 6450 | AS21: 280 | AV21: 60 | AY21: 170
A22: Britannia Secondary Plan Area | F22: 3000 | I22: 6000 | L22: 3170 | O22: 150 | Q22: 160 | S22: 4100 | U22: 35950 | X22: 48070 | Z22: 12000 | AB22: 23800 | AD22: 12120 | AF22: 450 | AI22: 660 | AL22: 990 | AO22: 4280 | AQ22: 5270 | AS22: 330 | AV22: 3280 | AY22: 1000
A23: Trafalgar Secondary Plan Area | F23: 2640 | I23: 3420 | L23: 950 | O23: 190 | Q23: 200 | S23: 9100 | U23: 22400 | X23: 25590 | Z23: 8900 | AB23: 13290 | AD23: 3190 | AF23: 160 | AI23: 240 | AL23: 960 | AO23: 2530 | AQ23: 2980 | AS23: 720 | AV23: 1560 | AY23: 450
A24: Trafalgar GO MTSA Existing DGA Area | F24: 0 | I24: 1030 | L24: 860 | O24: 20 | Q24: 20 | S24: 20 | U24: 3010 | X24: 5130 | Z24: 0 | AB24: 2990 | AD24: 2120 | AF24: 0 | AI24: 0 | AL24: 120 | AO24: 850 | AQ24: 2190 | AS24: 120 | AV24: 730 | AY24: 1340
A25: Education Village | F25: 330 | I25: 970 | L25: 850 | O25: 0 | Q25: 0 | S25: 870 | U25: 3760 | X25: 6000 | Z25: 870 | AB25: 2880 | AD25: 2250 | AF25: 0 | AI25: 0 | AL25: 550 | AO25: 1320 | AQ25: 2300 | AS25: 550 | AV25: 780 | AY25: 980
A26: Agerton Employment Area | F26: 0 | I26: 0 | L26: 0 | O26: 20 | Q26: 20 | S26: 20 | U26: 20 | X26: 20 | Z26: 0 | AB26: 0 | AD26: 0 | AF26: 210 | AI26: 190 | AL26: 2610 | AO26: 5050 | AQ26: 7120 | AS26: 2420 | AV26: 2440 | AY26: 2070
A27: Highway 401 Business Park DGA | F27: 0 | I27: 0 | L27: 0 | O27: 0 | Q27: 0 | S27: 0 | U27: 0 | X27: 0 | Z27: 0 | AB27: 0 | AD27: 0 | AF27: 1830 | AI27: 0 | AL27: 2890 | AO27: 3950 | AQ27: 4470 | AS27: 2890 | AV27: 1050 | AY27: 520
A28: Derry Green Employment Area | F28: 0 | I28: 0 | L28: 0 | O28: 120 | Q28: 120 | S28: 130 | U28: 120 | X28: 120 | Z28: 0 | AB28: 0 | AD28: 0 | AF28: 260 | AI28: 760 | AL28: 8160 | AO28: 11710 | AQ28: 12790 | AS28: 7390 | AV28: 3550 | AY28: 1080
A29: Southwest Employment Area | F29: 0 | I29: 0 | L29: 0 | O29: 50 | Q29: 50 | S29: 50 | U29: 50 | X29: 50 | Z29: 0 | AB29: 0 | AD29: 0 | AF29: 50 | AI29: 0 | AL29: 0 | AO29: 4860 | AQ29: 6540 | AS29: 0 | AV29: 4860 | AY29: 1680
A30: Existing DGA | F30: =SUM(F19:H29) -> 14930 | I30: =SUM(I19:K29) -> 13170 | L30: =SUM(L19:N29) -> 6780 | O30: 48920 | Q30: 66590 | S30: 104550 | U30: 166270 | X30: =SUM(X19:Y29) -> 188250 | Z30: =SUM(Z19:AA29) -> 53080 | AB30: =SUM(AB19:AC29) -> 46600 | AD30: =SUM(AD19:AE29) -> 21990 | AF30: 8510 | AI30: 10090 | AL30: 27270 | AO30: 47220 | AQ30: 57040 | AS30: 17180 | AV30: 19950 | AY30: 9820
A32: New Community Area East & Southeast | F32: 0 | I32: 1544 | L32: 2316 | O32: 250 | Q32: 270 | S32: 270 | U32: 260 | X32: 14640 | Z32: 0 | AB32: 5752 | AD32: 8628 | AF32: 0 | AI32: 0 | AL32: 0 | AO32: 0 | AQ32: 1490 | AS32: 0 | AV32: 0 | AY32: 1490
A33: New Community Area South | F33: 0 | I33: 2720 | L33: 4080 | O33: 100 | Q33: 100 | S33: 100 | U33: 100 | X33: 25930 | Z33: 0 | AB33: 10332 | AD33: 15498 | AF33: 0 | AI33: 0 | AL33: 0 | AO33: 0 | AQ33: 1920 | AS33: 0 | AV33: 0 | AY33: 1920
A34: New Employment Area East & Southeast | F34: 0 | I34: 12 | L34: 18 | O34: 120 | Q34: 130 | S34: 130 | U34: 130 | X34: 230 | Z34: 0 | AB34: 44 | AD34: 66 | AF34: 0 | AI34: 0 | AL34: 0 | AO34: 550 | AQ34: 12720 | AS34: 0 | AV34: 550 | AY34: 12170
A35: New Employment Area Southwest | F35: 0 | I35: 20 | L35: 30 | O35: 240 | Q35: 250 | S35: 250 | U35: 240 | X35: 400 | Z35: 0 | AB35: 64 | AD35: 96 | AF35: 100 | AI35: 150 | AL35: 150 | AO35: 150 | AQ35: 160 | AS35: 0 | AV35: 0 | AY35: 20
A36: New Employment Area Boston Church Road | F36: 0 | I36: 0 | L36: 0 | O36: 20 | Q36: 20 | S36: 20 | U36: 20 | X36: 30 | Z36: 0 | AB36: 4 | AD36: 6 | AF36: 0 | AI36: 0 | AL36: 0 | AO36: 550 | AQ36: 930 | AS36: 0 | AV36: 550 | AY36: 380
A37: New DGA | F37: 0 | I37: =SUM(I32:K36) -> 4296 | L37: =SUM(L32:N36) -> 6444 | O37: 730 | Q37: 760 | S37: 760 | U37: 740 | X37: 42550 | Z37: 0 | AB37: =SUM(AB32:AC36) -> 16196 | AD37: =SUM(AD32:AE36) -> 24294 | AF37: 100 | AI37: 150 | AL37: 150 | AO37: 1250 | AQ37: 17450 | AS37: 0 | AV37: 1100 | AY37: 16200
A39: Rural Area East and South | F39: 10 | I39: 10 | L39: 10 | O39: 1320 | Q39: 1370 | S39: 1390 | U39: 1360 | X39: 1380 | Z39: 20 | AB39: -30 | AD39: 20 | AF39: 430 | AI39: 820 | AL39: 850 | AO39: 850 | AQ39: 870 | AS39: 20 | AV39: 0 | AY39: 20
A40: Rural Greenbelt Northeast | F40: 0 | I40: 0 | L40: 0 | O40: 130 | Q40: 140 | S40: 140 | U40: 140 | X40: 140 | Z40: 0 | AB40: 0 | AD40: 0 | AF40: 20 | AI40: 0 | AL40: 0 | AO40: 0 | AQ40: 0 | AS40: 0 | AV40: 0 | AY40: 0
A41: Rural Greenbelt West | F41: 30 | I41: 30 | L41: 30 | O41: 2860 | Q41: 3020 | S41: 3110 | U41: 3100 | X41: 3200 | Z41: 100 | AB41: -10 | AD41: 100 | AF41: 1270 | AI41: 2030 | AL41: 2090 | AO41: 2110 | AQ41: 2160 | AS41: 60 | AV41: 20 | AY41: 50
A42: Rural Greenbelt Northwest | F42: 70 | I42: 70 | L42: 70 | O42: 4070 | Q42: 4340 | S42: 4610 | U42: 4720 | X42: 5010 | Z42: 270 | AB42: 110 | AD42: 290 | AF42: 1330 | AI42: 1010 | AL42: 1040 | AO42: 1050 | AQ42: 1080 | AS42: 30 | AV42: 10 | AY42: 30
A43: Rural | F43: 100 | I43: 100 | L43: 100 | O43: 8390 | Q43: 8870 | S43: 9250 | U43: 9320 | X43: 9730 | Z43: 380 | AB43: 60 | AD43: 410 | AF43: 3050 | AI43: 3860 | AL43: 3970 | AO43: 4010 | AQ43: 4110 | AS43: 110 | AV43: 30 | AY43: 110
A45: Milton Urban Growth Centre | F45: 2170 | I45: 2630 | L45: 2690 | O45: 1830 | Q45: 2500 | S45: 6800 | U45: 12060 | X45: 17690 | Z45: 4300 | AB45: 5260 | AD45: 5630 | AF45: 4220 | AI45: 5470 | AL45: 8790 | AO45: 12930 | AQ45: 17230 | AS45: 3330 | AV45: 4130 | AY45: 4310
A46: Meritor & Bronte-Main Lands | F46: 790 | I46: 320 | L46: 0 | O46: 0 | Q46: 0 | S46: 1630 | U46: 2480 | X46: 2480 | Z46: 1630 | AB46: 850 | AD46: 0 | AF46: 350 | AI46: 300 | AL46: 240 | AO46: 390 | AQ46: 460 | AS46: -60 | AV46: 150 | AY46: 80
A47: BUA Centres | F47: 2960 | I47: 2950 | L47: 2690 | O47: 1830 | Q47: 2500 | S47: 8430 | U47: 14540 | X47: 20180 | Z47: 5930 | AB47: 6110 | AD47: 5630 | AF47: 4570 | AI47: 5770 | AL47: 9030 | AO47: 13310 | AQ47: 17700 | AS47: 3260 | AV47: 4280 | AY47: 4380
A49: Ontario Street Corridor | F49: 190 | I49: 160 | L49: 210 | O49: 0 | Q49: 0 | S49: 470 | U49: 890 | X49: 1430 | Z49: 470 | AB49: 420 | AD49: 550 | AF49: 0 | AI49: 0 | AL49: 600 | AO49: 1210 | AQ49: 1930 | AS49: 600 | AV49: 610 | AY49: 720
A50: Steeles Avenue Corridor | F50: 180 | I50: 180 | L50: 200 | O50: 0 | Q50: 0 | S50: 430 | U50: 900 | X50: 1430 | Z50: 430 | AB50: 470 | AD50: 530 | AF50: 0 | AI50: 0 | AL50: 600 | AO50: 1210 | AQ50: 1930 | AS50: 600 | AV50: 620 | AY50: 720
A51: James Snow Parkway Corridor | F51: 140 | I51: 150 | L51: 160 | O51: 0 | Q51: 0 | S51: 310 | U51: 680 | X51: 1090 | Z51: 310 | AB51: 370 | AD51: 410 | AF51: 0 | AI51: 0 | AL51: 80 | AO51: 180 | AQ51: 290 | AS51: 80 | AV51: 110 | AY51: 100
A52: Derry Road Corridor | F52: 0 | I52: 30 | L52: 0 | O52: 0 | Q52: 0 | S52: 0 | U52: 70 | X52: 70 | Z52: 0 | AB52: 70 | AD52: 0 | AF52: 0 | AI52: 0 | AL52: 70 | AO52: 150 | AQ52: 240 | AS52: 70 | AV52: 80 | AY52: 90
A53: Highway 25 Corridor | F53: 0 | I53: 0 | L53: 0 | O53: 0 | Q53: 0 | S53: 0 | U53: 0 | X53: 0 | Z53: 0 | AB53: 0 | AD53: 0 | AF53: 0 | AI53: 0 | AL53: 150 | AO53: 290 | AQ53: 470 | AS53: 150 | AV53: 140 | AY53: 170
A54: BUA Corridors | F54: 510 | I54: 510 | L54: 570 | O54: 0 | Q54: 0 | S54: 1210 | U54: 2530 | X54: 4030 | Z54: 1210 | AB54: 1320 | AD54: 1490 | AF54: 0 | AI54: 0 | AL54: 1490 | AO54: 3050 | AQ54: 4860 | AS54: 1490 | AV54: 1560 | AY54: 1810
A56: Old Milton West | F56: 380 | I56: 390 | L56: 490 | O56: 6130 | Q56: 6830 | S56: 7900 | U56: 8840 | X56: 10330 | Z56: 1070 | AB56: 940 | AD56: 1490 | AF56: 2040 | AI56: 2270 | AL56: 2380 | AO56: 2380 | AQ56: 2540 | AS56: 100 | AV56: 0 | AY56: 160
A57: Old Milton East | F57: 350 | I57: 370 | L57: 470 | O57: 5540 | Q57: 6400 | S57: 7380 | U57: 8300 | X57: 9750 | Z57: 980 | AB57: 920 | AD57: 1440 | AF57: 1140 | AI57: 1210 | AL57: 1280 | AO57: 1290 | AQ57: 1530 | AS57: 70 | AV57: 0 | AY57: 240
A58: Old Milton North Community Area | F58: 330 | I58: 360 | L58: 450 | O58: 6850 | Q58: 7400 | S58: 8350 | U58: 9190 | X58: 10580 | Z58: 950 | AB58: 840 | AD58: 1390 | AF58: 1110 | AI58: 1500 | AL58: 1800 | AO58: 1950 | AQ58: 2260 | AS58: 300 | AV58: 150 | AY58: 310
A59: Bristol Community Area BUA | F59: 170 | I59: 280 | L59: 280 | O59: 34980 | Q59: 37510 | S59: 37920 | U59: 37190 | X59: 38040 | Z59: 410 | AB59: -730 | AD59: 850 | AF59: 3440 | AI59: 4080 | AL59: 4380 | AO59: 4580 | AQ59: 4970 | AS59: 300 | AV59: 200 | AY59: 390
A60: Bronte Street Triangle Employment Area | F60: 0 | I60: 0 | L60: 0 | O60: 0 | Q60: 0 | S60: 0 | U60: 0 | X60: 0 | Z60: 0 | AB60: 0 | AD60: 0 | AF60: 20 | AI60: 30 | AL60: 30 | AO60: 30 | AQ60: 30 | AS60: 0 | AV60: 0 | AY60: 0
A61: Highway 401 Employment Area BUA | F61: 0 | I61: 0 | L61: 0 | O61: 210 | Q61: 220 | S61: 220 | U61: 220 | X61: 220 | Z61: 0 | AB61: 0 | AD61: 10 | AF61: 14140 | AI61: 13970 | AL61: 14600 | AO61: 14800 | AQ61: 15270 | AS61: 620 | AV61: 210 | AY61: 460
A62: BUA General | F62: 1230 | I62: 1410 | L62: 1700 | O62: 54410 | Q62: 59270 | S62: 62680 | U62: 64620 | X62: 69790 | Z62: 3410 | AB62: 1930 | AD62: 5180 | AF62: 23250 | AI62: 24530 | AL62: 26260 | AO62: 27070 | AQ62: 28980 | AS62: 1730 | AV62: 810 | AY62: 1910
A64: Milton Total | F64: 15900 | I64: 22000 | L64: 23000 | O64: 114300 | Q64: 138000 | S64: 186900 | U64: 258000 | X64: 334500 | Z64: 48900 | AB64: 71100 | AD64: 76500 | AF64: 39500 | AI64: 44400 | AL64: 68200 | AO64: 95900 | AQ64: 130100 | AS64: 23800 | AV64: 27700 | AY64: 34200
A65: Region of Halton Draft Preferred Growth Concept- Revision (November 3, 2021)
A66: Housing Growth, Population, Employment and Employment Growth by Policy Areas and Local Municipal Sub-Areas
L68: =M32*0.4 -> 0
BB1048576: =AD1048576*0.4 -> 0

Sheet Table 1
A1: Region of Halton Draft Preferred Growth Concept- Revision (November 3, 2021)
A2: Housing Growth, Population, Employment and Employment Growth by Policy Areas and Local Municipal Sub-Areas
A3: Burlington | B3: Housing Unit Growth | G3: Population | AB3: Employment
B4: 2021-31 | C4: 2031-41 | D4: 2041-51 | G4: 2016 | J4: 2021 | M4: 2031 | P4: 2041 | R4: 2051 | T4: 2021-31 | W4: 2031-41 | Z4: 2041-51 | AB4: 2016 | AD4: 2021 | AG4: 2031 | AJ4: 2041 | AM4: 2051 | AP4: 2021-31 | AR4: 2031-41 | AU4: 2041-51
A5: Existing DGA | B5: 1150 | C5: 860 | D5: 550 | G5: 11790 | J5: 12660 | M5: 15680 | P5: 17370 | R5: 18700 | T5: 3010 | W5: 1690 | Z5: 1330 | AB5: 3740 | AD5: 5660 | AG5: 6540 | AJ5: 7590 | AM5: 9070 | AP5: 880 | AR5: 1040 | AU5: 1480
A6: New DGA | B6: 0 | C6: 0 | D6: 0 | G6: 0 | J6: 0 | M6: 0 | P6: 0 | R6: 0 | T6: 0 | W6: 0 | Z6: 0 | AB6: 0 | AD6: 0 | AG6: 0 | AJ6: 0 | AM6: 0 | AP6: 0 | AR6: 0 | AU6: 0
A7: Rural | B7: 310 | C7: 460 | D7: 330 | G7: 6110 | J7: 6180 | M7: 7310 | P7: 8960 | R7: 10260 | T7: 1120 | W7: 1650 | Z7: 1300 | AB7: 2380 | AD7: 2060 | AG7: 2120 | AJ7: 2300 | AM7: 2350 | AP7: 60 | AR7: 180 | AU7: 50
A8: BUA Centres | B8: 4190 | C8: 5460 | D8: 6370 | G8: 14940 | J8: 17240 | M8: 25030 | P8: 36050 | R8: 49350 | T8: 7790 | W8: 11030 | Z8: 13290 | AB8: 18760 | AD8: 20450 | AG8: 21910 | AJ8: 24670 | AM8: 26990 | AP8: 1460 | AR8: 2760 | AU8: 2320
A9: BUA Corridors | B9: 2330 | C9: 1970 | D9: 1290 | G9: 4630 | J9: 5320 | M9: 9820 | P9: 14440 | R9: 17440 | T9: 4500 | W9: 4630 | Z9: 3000 | AB9: 6880 | AD9: 6610 | AG9: 7440 | AJ9: 8690 | AM9: 9400 | AP9: 830 | AR9: 1250 | AU9: 710
A10: BUA General | B10: 3010 | C10: 3020 | D10: 2650 | G10: 150920 | J10: 153600 | M10: 159980 | P10: 165110 | R10: 171570 | T10: 6380 | W10: 5130 | Z10: 6450 | AB10: 65910 | AD10: 63670 | AG10: 67650 | AJ10: 70690 | AM10: 75060 | AP10: 3970 | AR10: 3050 | AU10: 4370
A11: Burlington | B11: 11000 | C11: 11800 | D11: 11200 | G11: 188400 | J11: 195000 | M11: 217800 | P11: 241900 | R11: 267300 | T11: 22800 | W11: 24100 | Z11: 25400 | AB11: 97700 | AD11: 98400 | AG11: 105700 | AJ11: 113900 | AM11: 122900 | AP11: 7200 | AR11: 8300 | AU11: 8900
A13: Oakville | B13: Housing Unit Growth | G13: Population | AB13: Employment
B14: 2021-31 | C14: 2031-41 | D14: 2041-51 | G14: 2016 | J14: 2021 | M14: 2031 | P14: 2041 | R14: 2051 | T14: 2021-31 | W14: 2031-41 | Z14: 2041-51 | AB14: 2016 | AD14: 2021 | AG14: 2031 | AJ14: 2041 | AM14: 2051 | AP14: 2021-31 | AR14: 2031-41 | AU14: 2041-51
A15: Existing DGA | B15: 13500 | C15: 10900 | D15: 8650 | G15: 9180 | J15: 25090 | M15: 63550 | P15: 94280 | R15: 115680 | T15: 38460 | W15: 30730 | Z15: 21400 | AB15: 5130 | AD15: 7130 | AG15: 20170 | AJ15: 31000 | AM15: 36880 | AP15: 13030 | AR15: 10840 | AU15: 5880
A16: New DGA | B16: 0 | C16: 0 | D16: 0 | G16: 0 | J16: 0 | M16: 0 | P16: 0 | R16: 0 | T16: 0 | W16: 0 | Z16: 0 | AB16: 0 | AD16: 0 | AG16: 0 | AJ16: 0 | AM16: 0 | AP16: 0 | AR16: 0 | AU16: 0
A17: Rural | B17: 0 | C17: 0 | D17: 0 | G17: 60 | J17: 60 | M17: 60 | P17: 60 | R17: 60 | T17: 0 | W17: 0 | Z17: 0 | AB17: 130 | AD17: 140 | AG17: 140 | AJ17: 140 | AM17: 140 | AP17: 0 | AR17: 0 | AU17: 0
A18: BUA Centres | B18: 5530 | C18: 6130 | D18: 6010 | G18: 14930 | J18: 18930 | M18: 29510 | P18: 41950 | R18: 54580 | T18: 10580 | W18: 12430 | Z18: 12640 | AB18: 17970 | AD18: 14770 | AG18: 20760 | AJ18: 25470 | AM18: 29600 | AP18: 5990 | AR18: 4710 | AU18: 4130
A19: BUA Corridors | B19: 890 | C19: 1840 | D19: 1840 | G19: 7980 | J19: 9110 | M19: 10950 | P19: 15010 | R19: 19120 | T19: 1840 | W19: 4070 | Z19: 4110 | AB19: 4630 | AD19: 5250 | AG19: 8360 | AJ19: 10130 | AM19: 11750 | AP19: 3110 | AR19: 1760 | AU19: 1620
A20: BUA General | B20: 2700 | C20: 1880 | D20: 1930 | G20: 167340 | J20: 168800 | M20: 176050 | P20: 178670 | R20: 184280 | T20: 7240 | W20: 2620 | Z20: 5610 | AB20: 75120 | AD20: 83500 | AG20: 90650 | AJ20: 95290 | AM20: 102790 | AP20: 7150 | AR20: 4640 | AU20: 7510
A21: Oakville | B21: 22600 | C21: 20700 | D21: 18400 | G21: 199500 | J21: 222000 | M21: 280100 | P21: 330000 | R21: 373700 | T21: 58100 | W21: 49800 | Z21: 43800 | AB21: 103000 | AD21: 110800 | AG21: 140100 | AJ21: 162000 | AM21: 181200 | AP21: 29300 | AR21: 22000 | AU21: 19100
A23: Milton | B23: Housing Unit Growth | G23: Population | AB23: Employment
B24: 2021-31 | C24: 2031-41 | D24: 2041-51 | G24: 2016 | J24: 2021 | M24: 2031 | P24: 2041 | R24: 2051 | T24: 2021-31 | W24: 2031-41 | Z24: 2041-51 | AB24: 2016 | AD24: 2021 | AG24: 2031 | AJ24: 2041 | AM24: 2051 | AP24: 2021-31 | AR24: 2031-41 | AU24: 2041-51
A25: Existing DGA | B25: 11080 | C25: 17000 | D25: 6790 | G25: 48920 | J25: 66590 | M25: 104550 | P25: 166270 | R25: 188260 | T25: 37960 | W25: 61720 | Z25: 21990 | AB25: 8510 | AD25: 10090 | AG25: 27270 | AJ25: 47220 | AM25: 57040 | AP25: 17180 | AR25: 19950 | AU25: 9820
A26: New DGA | B26: 0 | C26: 0 | D26: 11190 | G26: 730 | J26: 760 | M26: 760 | P26: 740 | R26: 42550 | T26: 0 | W26: -20 | Z26: 41810 | AB26: 100 | AD26: 150 | AG26: 150 | AJ26: 1250 | AM26: 17450 | AP26: 0 | AR26: 1100 | AU26: 16200
A27: Rural | B27: 100 | C27: 100 | D27: 100 | G27: 8390 | J27: 8870 | M27: 9250 | P27: 9320 | R27: 9730 | T27: 380 | W27: 60 | Z27: 410 | AB27: 3050 | AD27: 3860 | AG27: 3970 | AJ27: 4010 | AM27: 4110 | AP27: 110 | AR27: 30 | AU27: 110
A28: BUA Centres | B28: 2960 | C28: 2950 | D28: 2690 | G28: 1830 | J28: 2500 | M28: 8430 | P28: 14540 | R28: 20180 | T28: 5930 | W28: 6110 | Z28: 5630 | AB28: 4570 | AD28: 5770 | AG28: 9030 | AJ28: 13310 | AM28: 17700 | AP28: 3260 | AR28: 4280 | AU28: 4380
A29: BUA Corridors | B29: 510 | C29: 510 | D29: 570 | G29: 0 | J29: 0 | M29: 1210 | P29: 2530 | R29: 4030 | T29: 1210 | W29: 1320 | Z29: 1490 | AB29: 0 | AD29: 0 | AG29: 1490 | AJ29: 3050 | AM29: 4860 | AP29: 1490 | AR29: 1560 | AU29: 1810
A30: BUA General | B30: 1230 | C30: 1410 | D30: 1700 | G30: 54410 | J30: 59270 | M30: 62680 | P30: 64620 | R30: 69790 | T30: 3410 | W30: 1930 | Z30: 5180 | AB30: 23250 | AD30: 24530 | AG30: 26260 | AJ30: 27070 | AM30: 28980 | AP30: 1730 | AR30: 810 | AU30: 1910
A31: Milton | B31: 15900 | C31: 22000 | D31: 23000 | G31: 114300 | J31: 138000 | M31: 186900 | P31: 258000 | R31: 334500 | T31: 48900 | W31: 71100 | Z31: 76500 | AB31: 39500 | AD31: 44400 | AG31: 68200 | AJ31: 95900 | AM31: 130100 | AP31: 23800 | AR31: 27700 | AU31: 34200
A33: Halton Hills | B33: Housing Unit Growth | G33: Population | AB33: Employment
B34: 2021-31 | C34: 2031-41 | D34: 2041-51 | G34: 2016 | J34: 2021 | M34: 2031 | P34: 2041 | R34: 2051 | T34: 2021-31 | W34: 2031-41 | Z34: 2041-51 | AB34: 2016 | AD34: 2021 | AG34: 2031 | AJ34: 2041 | AM34: 2051 | AP34: 2021-31 | AR34: 2031-41 | AU34: 2041-51
A35: Existing DGA | B35: 4070 | C35: 2260 | D35: 1440 | G35: 5640 | J35: 6980 | M35: 19940 | P35: 27370 | R35: 31970 | T35: 12960 | W35: 7430 | Z35: 4600 | AB35: 2970 | AD35: 4620 | AG35: 15190 | AJ35: 23050 | AM35: 27370 | AP35: 10570 | AR35: 7860 | AU35: 4320
A36: New DGA | B36: 0 | C36: 1680 | D36: 3810 | G36: 440 | J36: 440 | M36: 440 | P36: 6940 | R36: 20340 | T36: 0 | W36: 6500 | Z36: 13400 | AB36: 0 | AD36: 0 | AG36: 0 | AJ36: 2660 | AM36: 14030 | AP36: 0 | AR36: 2660 | AU36: 11370
A37: Rural | B37: 120 | C37: 120 | D37: 110 | G37: 9100 | J37: 9440 | M37: 9880 | P37: 10040 | R37: 10510 | T37: 440 | W37: 160 | Z37: 470 | AB37: 3010 | AD37: 2610 | AG37: 2650 | AJ37: 2680 | AM37: 2730 | AP37: 40 | AR37: 30 | AU37: 40
A38: BUA Centres | B38: 580 | C38: 840 | D38: 820 | G38: 5670 | J38: 5770 | M38: 6860 | P38: 8430 | R38: 10190 | T38: 1080 | W38: 1570 | Z38: 1760 | AB38: 1510 | AD38: 1220 | AG38: 1300 | AJ38: 1770 | AM38: 2380 | AP38: 70 | AR38: 470 | AU38: 610
A39: BUA Corridors | B39: 230 | C39: 320 | D39: 320 | G39: 0 | J39: 0 | M39: 450 | P39: 1200 | R39: 1920 | T39: 450 | W39: 740 | Z39: 720 | AB39: 0 | AD39: 0 | AG39: 40 | AJ39: 280 | AM39: 570 | AP39: 40 | AR39: 240 | AU39: 290
A40: BUA General | B40: 660 | C40: 980 | D40: 870 | G40: 42100 | J40: 43360 | M40: 45020 | P40: 46830 | R40: 49500 | T40: 1660 | W40: 1810 | Z40: 2670 | AB40: 15530 | AD40: 16180 | AG40: 16700 | AJ40: 17580 | AM40: 18780 | AP40: 520 | AR40: 870 | AU40: 1200
A41: Halton Hills | B41: 5700 | C41: 6200 | D41: 7400 | G41: 62900 | J41: 66000 | M41: 82600 | P41: 100800 | R41: 124400 | T41: 16600 | W41: 18200 | Z41: 23600 | AB41: 23000 | AD41: 24600 | AG41: 35900 | AJ41: 48000 | AM41: 65900 | AP41: 11200 | AR41: 12100 | AU41: 17800
A43: Halton | B43: Housing Unit Growth | G43: Population | AB43: Employment
B44: 2021-31 | C44: 2031-41 | D44: 2041-51 | G44: 2016 | J44: 2021 | M44: 2031 | P44: 2041 | R44: 2051 | T44: 2021-31 | W44: 2031-41 | Z44: 2041-51 | AB44: 2016 | AD44: 2021 | AG44: 2031 | AJ44: 2041 | AM44: 2051 | AP44: 2021-31 | AR44: 2031-41 | AU44: 2041-51
A45: Existing DGA | B45: 29800 | C45: 31020 | D45: 17430 | G45: 75530 | J45: 111320 | M45: 203720 | P45: 305290 | R45: 354610 | T45: 92390 | W45: 101570 | Z45: 49320 | AB45: 20350 | AD45: 27500 | AG45: 69170 | AJ45: 108860 | AM45: 130360 | AP45: 41660 | AR45: 39690 | AU45: 21500
A46: New DGA | B46: 0 | C46: 1680 | D46: 15000 | G46: 1170 | J46: 1200 | M46: 1200 | P46: 7680 | R46: 62890 | T46: 0 | W46: 6480 | Z46: 55210 | AB46: 100 | AD46: 150 | AG46: 150 | AJ46: 3910 | AM46: 31480 | AP46: 0 | AR46: 3760 | AU46: 27570
A47: Rural | B47: 530 | C47: 680 | D47: 540 | G47: 23660 | J47: 24550 | M47: 26500 | P47: 28380 | R47: 30560 | T47: 1940 | W47: 1870 | Z47: 2180 | AB47: 8570 | AD47: 8670 | AG47: 8880 | AJ47: 9130 | AM47: 9330 | AP47: 210 | AR47: 240 | AU47: 200
A48: BUA Centres | B48: 13260 | C48: 15380 | D48: 15890 | G48: 37370 | J48: 44440 | M48: 69830 | P48: 100970 | R48: 134300 | T48: 25380 | W48: 31140 | Z48: 33320 | AB48: 42810 | AD48: 42210 | AG48: 53000 | AJ48: 65220 | AM48: 76670 | AP48: 10780 | AR48: 12220 | AU48: 11440
A49: BUA Corridors | B49: 3960 | C49: 4640 | D49: 4020 | G49: 12610 | J49: 14430 | M49: 22430 | P49: 33180 | R49: 42510 | T49: 8000 | W49: 10760 | Z49: 9320 | AB49: 11510 | AD49: 11860 | AG49: 17330 | AJ49: 22150 | AM49: 26580 | AP49: 5470 | AR49: 4810 | AU49: 4430
A50: BUA General | B50: 7600 | C50: 7290 | D50: 7150 | G50: 414770 | J50: 425030 | M50: 443730 | P50: 455230 | R50: 475140 | T50: 18690 | W50: 11490 | Z50: 19910 | AB50: 179810 | AD50: 187880 | AG50: 201260 | AJ50: 210630 | AM50: 225610 | AP50: 13370 | AR50: 9370 | AU50: 14990
A51: Halton | B51: 55200 | C51: 60700 | D51: 60000 | G51: 565100 | J51: 621000 | M51: 767400 | P51: 930700 | R51: 1099900 | T51: 146400 | W51: 163200 | Z51: 169300 | AB51: 263200 | AD51: 278200 | AG51: 349900 | AJ51: 419800 | AM51: 500100 | AP51: 71500 | AR51: 70100 | AU51: 80000
A52: Region of Halton Draft Preferred Growth Concept- Revision (November 3, 2021)
A53: Housing Growth, Population, Employment and Employment Growth by Policy Areas and Local Municipal Sub-Areas
A54: Burlington | F54: Housing Unit Growth | O54: Population | Z54: Population Growth | AF54: Employment | AS54: Employment Growth
F55: 2021-31 | I55: 2031-41 | L55: 2041-51 | O55: 2016 | Q55: 2021 | S55: 2031 | U55: 2041 | X55: 2051 | Z55: 2021-31 | AB55: 2031-41 | AD55: 2041-51 | AF55: 2016 | AI55: 2021 | AL55: 2031 | AO55: 2041 | AQ55: 2051 | AS55: 2021-31 | AV55: 2031-41 | AY55: 2041-51
A57: Alton Community Area | F57: 620 | I57: 640 | L57: 20 | O57: 11770 | Q57: 12650 | S57: 14150 | U57: 15280 | X57: 15370 | Z57: 1500 | AB57: 1130 | AD57: 90 | AF57: 1350 | AI57: 2780 | AL57: 2940 | AO57: 3070 | AQ57: 3070 | AS57: 160 | AV57: 130 | AY57: 0
A58: Tremaine Evergreen | F58: 530 | I58: 220 | L58: 530 | O58: 10 | Q58: 10 | S58: 1520 | U58: 2090 | X58: 3330 | Z58: 1510 | AB58: 570 | AD58: 1240 | AF58: 400 | AI58: 280 | AL58: 450 | AO58: 660 | AQ58: 710 | AS58: 160 | AV58: 210 | AY58: 60
A59: Alton-Tremaine DGA Employment Area | F59: 0 | I59: 0 | L59: 0 | O59: 0 | Q59: 0 | S59: 0 | U59: 0 | X59: 0 | Z59: 0 | AB59: 0 | AD59: 0 | AF59: 270 | AI59: 290 | AL59: 540 | AO59: 770 | AQ59: 930 | AS59: 250 | AV59: 240 | AY59: 160
A60: Bronte Creek Meadows | F60: 0 | I60: 0 | L60: 0 | O60: 10 | Q60: 10 | S60: 10 | U60: 10 | X60: 10 | Z60: 0 | AB60: 0 | AD60: 0 | AF60: 520 | AI60: 950 | AL60: 1040 | AO60: 1480 | AQ60: 2550 | AS60: 90 | AV60: 440 | AY60: 1070
A61: Aldershot Employment Area DGA | F61: 0 | I61: 0 | L61: 0 | O61: 0 | Q61: 0 | S61: 0 | U61: 0 | X61: 0 | Z61: 0 | AB61: 0 | AD61: 0 | AF61: 1200 | AI61: 1360 | AL61: 1570 | AO61: 1600 | AQ61: 1800 | AS61: 220 | AV61: 30 | AY61: 190
A62: Existing DGA | F62: 1150 | I62: 860 | L62: 550 | O62: 11790 | Q62: 12660 | S62: 15680 | U62: 17370 | X62: 18700 | Z62: 3010 | AB62: 1690 | AD62: 1330 | AF62: 3740 | AI62: 5660 | AL62: 6540 | AO62: 7590 | AQ62: 9070 | AS62: 880 | AV62: 1040 | AY62: 1480
A64: New DGA | F64: 0 | I64: 0 | L64: 0 | O64: 0 | Q64: 0 | S64: 0 | U64: 0 | X64: 0 | Z64: 0 | AB64: 0 | AD64: 0 | AF64: 0 | AI64: 0 | AL64: 0 | AO64: 0 | AQ64: 0 | AS64: 0 | AV64: 0 | AY64: 0
A65: New DGA | F65: 0 | I65: 0 | L65: 0 | O65: 0 | Q65: 0 | S65: 0 | U65: 0 | X65: 0 | Z65: 0 | AB65: 0 | AD65: 0 | AF65: 0 | AI65: 0 | AL65: 0 | AO65: 0 | AQ65: 0 | AS65: 0 | AV65: 0 | AY65: 0
A67: Eagle Heights | F67: 250 | I67: 400 | L67: 270 | O67: 0 | Q67: 0 | S67: 900 | U67: 2420 | X67: 3450 | Z67: 900 | AB67: 1510 | AD67: 1030 | AF67: 0 | AI67: 0 | AL67: 50 | AO67: 200 | AQ67: 250 | AS67: 50 | AV67: 160 | AY67: 40
A68: North Aldershot Rural Area | F68: 30 | I68: 30 | L68: 30 | O68: 1390 | Q68: 1410 | S68: 1520 | U68: 1610 | X68: 1740 | Z68: 110 | AB68: 90 | AD68: 130 | AF68: 650 | AI68: 410 | AL68: 420 | AO68: 430 | AQ68: 430 | AS68: 10 | AV68: 10 | AY68: 0
A69: North Burlington Rural Area | F69: 30 | I69: 30 | L69: 30 | O69: 4720 | Q69: 4770 | S69: 4880 | U69: 4930 | X69: 5070 | Z69: 110 | AB69: 50 | AD69: 140 | AF69: 1730 | AI69: 1650 | AL69: 1650 | AO69: 1660 | AQ69: 1670 | AS69: 10 | AV69: 10 | AY69: 10
A70: Rural | F70: 310 | I70: 460 | L70: 330 | O70: 6110 | Q70: 6180 | S70: 7310 | U70: 8960 | X70: 10260 | Z70: 1120 | AB70: 1650 | AD70: 1300 | AF70: 2380 | AI70: 2060 | AL70: 2120 | AO70: 2300 | AQ70: 2350 | AS70: 60 | AV70: 180 | AY70: 50
A72: Downtown Mixed Use Centre | F72: 1190 | I72: 840 | L72: 660 | O72: 7790 | Q72: 8170 | S72: 10360 | U72: 11980 | X72: 13400 | Z72: 2190 | AB72: 1620 | AD72: 1420 | AF72: 5860 | AI72: 6200 | AL72: 6690 | AO72: 7320 | AQ72: 7820 | AS72: 500 | AV72: 620 | AY72: 500
A73: Downtown Burlington UGC | F73: 1140 | I73: 1790 | L73: 2990 | O73: 620 | Q73: 1670 | S73: 3800 | U73: 7480 | X73: 13680 | Z73: 2130 | AB73: 3680 | AD73: 6210 | AF73: 2590 | AI73: 2680 | AL73: 3140 | AO73: 4010 | AQ73: 4800 | AS73: 460 | AV73: 870 | AY73: 800
A74: Appleby MTSA | F74: 610 | I74: 1130 | L74: 1270 | O74: 1130 | Q74: 1140 | S74: 2290 | U74: 4630 | X74: 7280 | Z74: 1150 | AB74: 2340 | AD74: 2650 | AF74: 6030 | AI74: 6390 | AL74: 6620 | AO74: 7270 | AQ74: 7930 | AS74: 230 | AV74: 650 | AY74: 660
A75: Aldershot MTSA | F75: 970 | I75: 1290 | L75: 1260 | O75: 270 | Q75: 1100 | S75: 2910 | U75: 5560 | X75: 8180 | Z75: 1820 | AB75: 2640 | AD75: 2630 | AF75: 1150 | AI75: 1090 | AL75: 1270 | AO75: 1740 | AQ75: 2090 | AS75: 170 | AV75: 480 | AY75: 350
A76: Uptown Core | F76: 280 | I76: 420 | L76: 190 | O76: 5130 | Q76: 5160 | S76: 5670 | U76: 6410 | X76: 6810 | Z76: 500 | AB76: 750 | AD76: 390 | AF76: 3130 | AI76: 4090 | AL76: 4190 | AO76: 4330 | AQ76: 4340 | AS76: 100 | AV76: 140 | AY76: 10
A77: BUA Centres | F77: 4190 | I77: 5460 | L77: 6370 | O77: 14940 | Q77: 17240 | S77: 25030 | U77: 36050 | X77: 49350 | Z77: 7790 | AB77: 11030 | AD77: 13290 | AF77: 18760 | AI77: 20450 | AL77: 21910 | AO77: 24670 | AQ77: 26990 | AS77: 1460 | AV77: 2760 | AY77: 2320
A79: Fairview Corridor | F79: 1140 | I79: 990 | L79: 640 | O79: 1150 | Q79: 1160 | S79: 3350 | U79: 5690 | X79: 7180 | Z79: 2190 | AB79: 2340 | AD79: 1500 | AF79: 4970 | AI79: 4850 | AL79: 5290 | AO79: 6000 | AQ79: 6420 | AS79: 440 | AV79: 710 | AY79: 420
A80: Plains Road Corridor (Aldershot) | F80: 1130 | I80: 990 | L80: 640 | O80: 3470 | Q80: 4160 | S80: 6320 | U80: 8610 | X80: 10120 | Z80: 2160 | AB80: 2290 | AD80: 1500 | AF80: 1780 | AI80: 1640 | AL80: 2000 | AO80: 2530 | AQ80: 2760 | AS80: 370 | AV80: 520 | AY80: 230
A81: BUA Corridors | F81: 2270 | I81: 1970 | L81: 1290 | O81: 4630 | Q81: 5320 | S81: 9670 | U81: 14300 | X81: 17300 | Z81: 4350 | AB81: 4630 | AD81: 3000 | AF81: 6750 | AI81: 6490 | AL81: 7290 | AO81: 8530 | AQ81: 9180 | AS81: 800 | AV81: 1230 | AY81: 650
A83: North of QEW Community Area BUA | F83: 1340 | I83: 1290 | L83: 1130 | O83: 75040 | Q83: 76450 | S83: 79310 | U83: 81220 | X83: 83940 | Z83: 2860 | AB83: 1910 | AD83: 2720 | AF83: 16410 | AI83: 14880 | AL83: 15500 | AO83: 15960 | AQ83: 16970 | AS83: 620 | AV83: 450 | AY83: 1010
A84: South of QEW Community Area BUA | F84: 1050 | I84: 1090 | L84: 960 | O84: 61300 | Q84: 62390 | S84: 64580 | U84: 66340 | X84: 68690 | Z84: 2190 | AB84: 1760 | AD84: 2350 | AF84: 12770 | AI84: 11220 | AL84: 11790 | AO84: 12260 | AQ84: 13230 | AS84: 560 | AV84: 470 | AY84: 970
A85: Aldershot Community Area BUA | F85: 670 | I85: 640 | L85: 560 | O85: 14270 | Q85: 14440 | S85: 15920 | U85: 17380 | X85: 18760 | Z85: 1480 | AB85: 1460 | AD85: 1380 | AF85: 2700 | AI85: 2650 | AL85: 2850 | AO85: 3260 | AQ85: 3920 | AS85: 190 | AV85: 420 | AY85: 660
A86: South of QEW - Employment | F86: 0 | I86: 0 | L86: 0 | O86: 140 | Q86: 140 | S86: 140 | U86: 130 | X86: 140 | Z86: 0 | AB86: 0 | AD86: 0 | AF86: 13690 | AI86: 12600 | AL86: 13950 | AO86: 14780 | AQ86: 15640 | AS86: 1340 | AV86: 830 | AY86: 860
A87: North QEW - Employment | F87: 0 | I87: 0 | L87: 0 | O87: 0 | Q87: 0 | S87: 0 | U87: 0 | X87: 0 | Z87: 0 | AB87: 0 | AD87: 0 | AF87: 17460 | AI87: 19220 | AL87: 20460 | AO87: 21300 | AQ87: 22210 | AS87: 1240 | AV87: 840 | AY87: 910
A88: Fairview/Plains Employment | F88: 0 | I88: 0 | L88: 0 | O88: 0 | Q88: 0 | S88: 0 | U88: 0 | X88: 0 | Z88: 0 | AB88: 0 | AD88: 0 | AF88: 870 | AI88: 740 | AL88: 770 | AO88: 810 | AQ88: 810 | AS88: 30 | AV88: 40 | AY88: 0
A89: Aldershot Employment BUA | F89: 0 | I89: 0 | L89: 0 | O89: 180 | Q89: 180 | S89: 180 | U89: 170 | X89: 170 | Z89: 0 | AB89: 0 | AD89: 0 | AF89: 1720 | AI89: 2060 | AL89: 2070 | AO89: 2070 | AQ89: 2080 | AS89: 10 | AV89: 10 | AY89: 10
A90: Harrison Court Employment BUA | F90: 0 | I90: 0 | L90: 0 | O90: 0 | Q90: 0 | S90: 0 | U90: 0 | X90: 0 | Z90: 0 | AB90: 0 | AD90: 0 | AF90: 410 | AI90: 410 | AL90: 410 | AO90: 410 | AQ90: 410 | AS90: 0 | AV90: 0 | AY90: 0
A91: BUA General | F91: 3070 | I91: 3020 | L91: 2650 | O91: 150920 | Q91: 153600 | S91: 160130 | U91: 165260 | X91: 171710 | Z91: 6530 | AB91: 5130 | AD91: 6450 | AF91: 66040 | AI91: 63790 | AL91: 67790 | AO91: 70850 | AQ91: 75280 | AS91: 4000 | AV91: 3060 | AY91: 4430
A93: Burlington Total | F93: 11000 | I93: 11800 | L93: 11200 | O93: 188400 | Q93: 195000 | S93: 217800 | U93: 241900 | X93: 267300 | Z93: 22800 | AB93: 24100 | AD93: 25400 | AF93: 97700 | AI93: 98400 | AL93: 105700 | AO93: 113900 | AQ93: 122900 | AS93: 7200 | AV93: 8300 | AY93: 8900
A94: Region of Halton Draft Preferred Growth Concept- Revision (November 3, 2021)
A95: Housing Growth, Population, Employment and Employment Growth by Policy Areas and Local Municipal Sub-Areas
A96: Oakville | F96: Housing Unit Growth | O96: Population | Z96: Population Growth | AF96: Employment | AS96: Employment Growth
F97: 2021-31 | I97: 2031-41 | L97: 2041-51 | O97: 2016 | Q97: 2021 | S97: 2031 | U97: 2041 | X97: 2051 | Z97: 2021-31 | AB97: 2031-41 | AD97: 2041-51 | AF97: 2016 | AI97: 2021 | AL97: 2031 | AO97: 2041 | AQ97: 2051 | AS97: 2021-31 | AV97: 2031-41 | AY97: 2041-51
A99: Glenorchy | F99: 4880 | I99: 2440 | L99: 570 | O99: 6340 | Q99: 17140 | S99: 31820 | U99: 39410 | X99: 41350 | Z99: 14680 | AB99: 7590 | AD99: 1940 | AF99: 820 | AI99: 2550 | AL99: 3620 | AO99: 4520 | AQ99: 4620 | AS99: 1070 | AV99: 900 | AY99: 100
A100: Joshua's Meadows | F100: 5490 | I100: 3380 | L100: 1360 | O100: 30 | Q100: 4410 | S100: 21710 | U100: 32990 | X100: 37750 | Z100: 17300 | AB100: 11280 | AD100: 4750 | AF100: 140 | AI100: 130 | AL100: 1400 | AO100: 2700 | AQ100: 2950 | AS100: 1270 | AV100: 1300 | AY100: 250
A101: Trafalgar Corridor, Dundas to Burnhamthorpe | F101: 1180 | I101: 2380 | L101: 2990 | O101: 0 | Q101: 0 | S101: 2270 | U101: 7050 | X101: 13200 | Z101: 2270 | AB101: 4780 | AD101: 6150 | AF101: 0 | AI101: 0 | AL101: 170 | AO101: 710 | AQ101: 1440 | AS101: 170 | AV101: 540 | AY101: 730
A102: Trafalgar Corridor (Burnhamthorpe to 407) | F102: 0 | I102: 0 | L102: 0 | O102: 0 | Q102: 0 | S102: 0 | U102: 0 | X102: 0 | Z102: 0 | AB102: 0 | AD102: 0 | AF102: 50 | AI102: 70 | AL102: 1240 | AO102: 1920 | AQ102: 2470 | AS102: 1170 | AV102: 680 | AY102: 550
A103: Neyagawa Urban Centre | F103: 420 | I103: 270 | L103: 480 | O103: 0 | Q103: 440 | S103: 1450 | U103: 2280 | X103: 3580 | Z103: 1010 | AB103: 820 | AD103: 1310 | AF103: 40 | AI103: 0 | AL103: 70 | AO103: 380 | AQ103: 630 | AS103: 70 | AV103: 310 | AY103: 250
A104: North Oakville East Employment Area | F104: 0 | I104: 0 | L104: 0 | O104: 30 | Q104: 30 | S104: 30 | U104: 30 | X104: 30 | Z104: 0 | AB104: 0 | AD104: 0 | AF104: 40 | AI104: 0 | AL104: 3400 | AO104: 6480 | AQ104: 7710 | AS104: 3400 | AV104: 3080 | AY104: 1230
A105: Hospital District Mixed-Use Area | F105: 510 | I105: 590 | L105: 760 | O105: 0 | Q105: 0 | S105: 970 | U105: 2160 | X105: 3730 | Z105: 970 | AB105: 1190 | AD105: 1570 | AF105: 2920 | AI105: 2710 | AL105: 3950 | AO105: 4920 | AQ105: 5420 | AS105: 1240 | AV105: 970 | AY105: 490
A106: North Oakville West Employment Area | F106: 0 | I106: 0 | L106: 0 | O106: 110 | Q106: 110 | S106: 110 | U106: 110 | X106: 110 | Z106: 0 | AB106: 0 | AD106: 0 | AF106: 600 | AI106: 620 | AL106: 4860 | AO106: 7030 | AQ106: 8220 | AS106: 4230 | AV106: 2170 | AY106: 1190
A107: Palermo Village North Urban Core | F107: 400 | I107: 600 | L107: 420 | O107: 80 | Q107: 80 | S107: 930 | U107: 2610 | X107: 3570 | Z107: 840 | AB107: 1680 | AD107: 960 | AF107: 40 | AI107: 30 | AL107: 90 | AO107: 280 | AQ107: 520 | AS107: 60 | AV107: 190 | AY107: 230
A108: Northwest Palermo Mixed-Use Area | F108: 0 | I108: 800 | L108: 790 | O108: 0 | Q108: 0 | S108: 0 | U108: 2520 | X108: 4620 | Z108: 0 | AB108: 2520 | AD108: 2100 | AF108: 10 | AI108: 10 | AL108: 10 | AO108: 290 | AQ108: 790 | AS108: 0 | AV108: 290 | AY108: 500
A109: South Palermo Village DGA | F109: 120 | I109: 0 | L109: 0 | O109: 2590 | Q109: 2650 | S109: 3000 | U109: 2950 | X109: 2950 | Z109: 350 | AB109: -50 | AD109: 0 | AF109: 460 | AI109: 1010 | AL109: 1030 | AO109: 1030 | AQ109: 1030 | AS109: 20 | AV109: 0 | AY109: 0
A110: Uptown Core DGA | F110: 450 | I110: 420 | L110: 1270 | O110: 0 | Q110: 220 | S110: 1090 | U110: 1910 | X110: 4530 | Z110: 870 | AB110: 820 | AD110: 2620 | AF110: 0 | AI110: 0 | AL110: 60 | AO110: 320 | AQ110: 630 | AS110: 60 | AV110: 260 | AY110: 310
A111: Other DGA Pockets South of Dundas | F111: 50 | I111: 30 | L111: 0 | O111: 0 | Q111: 10 | S111: 160 | U111: 250 | X111: 260 | Z111: 150 | AB111: 100 | AD111: 10 | AF111: 0 | AI111: 0 | AL111: 10 | AO111: 20 | AQ111: 20 | AS111: 10 | AV111: 10 | AY111: 0
A112: QEW East DGA Employment Area | F112: 0 | I112: 0 | L112: 0 | O112: 0 | Q112: 0 | S112: 0 | U112: 0 | X112: 0 | Z112: 0 | AB112: 0 | AD112: 0 | AF112: 0 | AI112: 0 | AL112: 250 | AO112: 390 | AQ112: 430 | AS112: 250 | AV112: 140 | AY112: 40
A113: Existing DGA | F113: 13500 | I113: 10910 | L113: 8640 | O113: 9180 | Q113: 25090 | S113: 63540 | U113: 94270 | X113: 115680 | Z113: 38440 | AB113: 30730 | AD113: 21410 | AF113: 5120 | AI113: 7130 | AL113: 20160 | AO113: 30990 | AQ113: 36880 | AS113: 13020 | AV113: 10840 | AY113: 5870
A115: New DGA | F115: 0 | I115: 0 | L115: 0 | O115: 0 | Q115: 0 | S115: 0 | U115: 0 | X115: 0 | Z115: 0 | AB115: 0 | AD115: 0 | AF115: 0 | AI115: 0 | AL115: 0 | AO115: 0 | AQ115: 0 | AS115: 0 | AV115: 0 | AY115: 0
A116: New DGA | F116: 0 | I116: 0 | L116: 0 | O116: 0 | Q116: 0 | S116: 0 | U116: 0 | X116: 0 | Z116: 0 | AB116: 0 | AD116: 0 | AF116: 0 | AI116: 0 | AL116: 0 | AO116: 0 | AQ116: 0 | AS116: 0 | AV116: 0 | AY116: 0
A118: Rural Oakville | F118: 0 | I118: 0 | L118: 0 | O118: 60 | Q118: 60 | S118: 60 | U118: 60 | X118: 60 | Z118: 0 | AB118: 0 | AD118: 0 | AF118: 130 | AI118: 140 | AL118: 140 | AO118: 140 | AQ118: 140 | AS118: 0 | AV118: 0 | AY118: 0
A119: Rural | F119: 0 | I119: 0 | L119: 0 | O119: 60 | Q119: 60 | S119: 60 | U119: 60 | X119: 60 | Z119: 0 | AB119: 0 | AD119: 0 | AF119: 130 | AI119: 140 | AL119: 140 | AO119: 140 | AQ119: 140 | AS119: 0 | AV119: 0 | AY119: 0
A121: Midtown UGC | F121: 2340 | I121: 2590 | L121: 1730 | O121: 520 | Q121: 510 | S121: 4960 | U121: 10290 | X121: 13840 | Z121: 4450 | AB121: 5330 | AD121: 3550 | AF121: 3450 | AI121: 3080 | AL121: 5250 | AO121: 7350 | AQ121: 9440 | AS121: 2170 | AV121: 2100 | AY121: 2090
A122: Bronte GO MTSA | F122: 320 | I122: 690 | L122: 1310 | O122: 0 | Q122: 0 | S122: 600 | U122: 1970 | X122: 4700 | Z122: 600 | AB122: 1370 | AD122: 2730 | AF122: 4110 | AI122: 2790 | AL122: 3810 | AO122: 4120 | AQ122: 4050 | AS122: 1020 | AV122: 310 | AY122: -70
A123: Downtown Oakville | F123: 310 | I123: 480 | L123: 150 | O123: 730 | Q123: 1020 | S123: 1650 | U123: 2730 | X123: 3080 | Z123: 630 | AB123: 1080 | AD123: 340 | AF123: 2870 | AI123: 1640 | AL123: 2150 | AO123: 2650 | AQ123: 2940 | AS123: 510 | AV123: 500 | AY123: 300
A124: Kerr Street Corridor | F124: 640 | I124: 820 | L124: 1200 | O124: 4420 | Q124: 5470 | S124: 6660 | U124: 8180 | X124: 10660 | Z124: 1190 | AB124: 1520 | AD124: 2480 | AF124: 2250 | AI124: 2180 | AL124: 2540 | AO124: 2910 | AQ124: 3230 | AS124: 360 | AV124: 370 | AY124: 320
A125: Uptown Core | F125: 1400 | I125: 860 | L125: 60 | O125: 4160 | Q125: 5280 | S125: 8020 | U125: 9930 | X125: 10110 | Z125: 2740 | AB125: 1910 | AD125: 180 | AF125: 3160 | AI125: 2560 | AL125: 3870 | AO125: 4780 | AQ125: 5600 | AS125: 1310 | AV125: 910 | AY125: 820
A126: Bronte Village | F126: 270 | I126: 340 | L126: 440 | O126: 2510 | Q126: 2820 | S126: 3310 | U126: 3930 | X126: 4910 | Z126: 490 | AB126: 620 | AD126: 980 | AF126: 1520 | AI126: 1210 | AL126: 1330 | AO126: 1530 | AQ126: 1800 | AS126: 120 | AV126: 200 | AY126: 270
A127: South Palermo Village BUA | F127: 270 | I127: 340 | L127: 1130 | O127: 2590 | Q127: 3830 | S127: 4320 | U127: 4920 | X127: 7280 | Z127: 490 | AB127: 600 | AD127: 2360 | AF127: 600 | AI127: 1310 | AL127: 1810 | AO127: 2130 | AQ127: 2540 | AS127: 500 | AV127: 320 | AY127: 420
A128: BUA Centres | F128: 5550 | I128: 6120 | L128: 6020 | O128: 14930 | Q128: 18930 | S128: 29520 | U128: 41950 | X128: 54580 | Z128: 10590 | AB128: 12430 | AD128: 12620 | AF128: 17960 | AI128: 14770 | AL128: 20760 | AO128: 25470 | AQ128: 29600 | AS128: 5990 | AV128: 4710 | AY128: 4150
A130: Bronte Road Corridor (Speers to Dundas) | F130: 40 | I130: 80 | L130: 0 | O130: 0 | Q130: 0 | S130: 130 | U130: 430 | X130: 430 | Z130: 130 | AB130: 300 | AD130: 0 | AF130: 0 | AI130: 0 | AL130: 200 | AO130: 400 | AQ130: 640 | AS130: 200 | AV130: 200 | AY130: 240
A131: Trafalgar Corridor (Cornwall to Uptown Core) | F131: 840 | I131: 1760 | L131: 1840 | O131: 7980 | Q131: 9110 | S131: 10820 | U131: 14580 | X131: 18690 | Z131: 1710 | AB131: 3760 | AD131: 4110 | AF131: 4630 | AI131: 5250 | AL131: 7050 | AO131: 7880 | AQ131: 8490 | AS131: 1800 | AV131: 830 | AY131: 610
A132: Dundas Corridor (included in DGA and planned centres | F132: 0 | I132: 0 | L132: 0 | O132: 0 | Q132: 0 | S132: 0 | U132: 0 | X132: 0 | Z132: 0 | AB132: 0 | AD132: 0 | AF132: 0 | AI132: 0 | AL132: 540 | AO132: 1060 | AQ132: 1630 | AS132: 540 | AV132: 520 | AY132: 570
A133: Cornwall Avenue Corridor | F133: 0 | I133: 0 | L133: 0 | O133: 0 | Q133: 0 | S133: 0 | U133: 0 | X133: 0 | Z133: 0 | AB133: 0 | AD133: 0 | AF133: 0 | AI133: 0 | AL133: 460 | AO133: 640 | AQ133: 820 | AS133: 460 | AV133: 180 | AY133: 180
A134: BUA Corridors | F134: 880 | I134: 1840 | L134: 1840 | O134: 7980 | Q134: 9110 | S134: 10950 | U134: 15010 | X134: 19120 | Z134: 1840 | AB134: 4060 | AD134: 4110 | AF134: 4630 | AI134: 5250 | AL134: 8250 | AO134: 9980 | AQ134: 11580 | AS134: 3000 | AV134: 1730 | AY134: 1600
A136: Southwest Oakville Community | F136: 500 | I136: 370 | L136: 430 | O136: 36510 | Q136: 36970 | S136: 38150 | U136: 38510 | X136: 39710 | Z136: 1180 | AB136: 360 | AD136: 1200 | AF136: 6620 | AI136: 5630 | AL136: 5800 | AO136: 5970 | AQ136: 6720 | AS136: 170 | AV136: 170 | AY136: 750
A137: Southeast Oakville Community | F137: 500 | I137: 470 | L137: 470 | O137: 23640 | Q137: 23960 | S137: 25180 | U137: 26260 | X137: 27650 | Z137: 1220 | AB137: 1080 | AD137: 1390 | AF137: 3790 | AI137: 2960 | AL137: 3260 | AO137: 3540 | AQ137: 4450 | AS137: 300 | AV137: 280 | AY137: 910
A138: Northeast Oakville Community | F138: 540 | I138: 480 | L138: 460 | O138: 48830 | Q138: 48920 | S138: 50220 | U138: 50800 | X138: 52090 | Z138: 1300 | AB138: 580 | AD138: 1290 | AF138: 7060 | AI138: 5290 | AL138: 5590 | AO138: 5860 | AQ138: 6720 | AS138: 300 | AV138: 270 | AY138: 860
A139: Northwest Oakville Community | F139: 1160 | I139: 550 | L139: 570 | O139: 57560 | Q139: 58150 | S139: 61690 | U139: 62300 | X139: 64030 | Z139: 3540 | AB139: 610 | AD139: 1730 | AF139: 12240 | AI139: 9360 | AL139: 10190 | AO139: 10590 | AQ139: 11770 | AS139: 830 | AV139: 400 | AY139: 1180
A140: Burloak Employment Area | F140: 0 | I140: 0 | L140: 0 | O140: 10 | Q140: 10 | S140: 10 | U140: 10 | X140: 10 | Z140: 0 | AB140: 0 | AD140: 0 | AF140: 3500 | AI140: 8790 | AL140: 10620 | AO140: 11510 | AQ140: 12520 | AS140: 1830 | AV140: 890 | AY140: 1010
A141: QEW West Employment Area | F141: 0 | I141: 0 | L141: 0 | O141: 10 | Q141: 10 | S141: 10 | U141: 10 | X141: 10 | Z141: 0 | AB141: 0 | AD141: 0 | AF141: 17810 | AI141: 22000 | AL141: 22830 | AO141: 23520 | AQ141: 24200 | AS141: 830 | AV141: 690 | AY141: 680
A142: QEW East & Midtown Core Employment Area | F142: 0 | I142: 0 | L142: 0 | O142: 720 | Q142: 720 | S142: 720 | U142: 710 | X142: 710 | Z142: 0 | AB142: -10 | AD142: 0 | AF142: 10920 | AI142: 13240 | AL142: 14580 | AO142: 15440 | AQ142: 16440 | AS142: 1340 | AV142: 860 | AY142: 1000
A143: Winston Park East and West Employment Area | F143: 0 | I143: 0 | L143: 0 | O143: 70 | Q143: 70 | S143: 70 | U143: 70 | X143: 70 | Z143: 0 | AB143: 0 | AD143: 0 | AF143: 13180 | AI143: 16220 | AL143: 17780 | AO143: 18870 | AQ143: 19990 | AS143: 1560 | AV143: 1090 | AY143: 1120
A144: Existing Retail Removed from Employment Area Design | F144: 0 | I144: 0 | L144: 0 | O144: 0 | Q144: 0 | S144: 0 | U144: 0 | X144: 0 | Z144: 0 | AB144: 0 | AD144: 0 | AF144: 0 | AI144: 0 | AL144: 100 | AO144: 140 | AQ144: 160 | AS144: 100 | AV144: 40 | AY144: 20
A145: BUA General | F145: 2700 | I145: 1880 | L145: 1930 | O145: 167340 | Q145: 168800 | S145: 176050 | U145: 178670 | X145: 184280 | Z145: 7250 | AB145: 2620 | AD145: 5610 | AF145: 75120 | AI145: 83500 | AL145: 90750 | AO145: 95420 | AQ145: 102960 | AS145: 7250 | AV145: 4670 | AY145: 7540
A147: Oakville Total | F147: 22600 | I147: 20700 | L147: 18400 | O147: 199500 | Q147: 222000 | S147: 280100 | U147: 330000 | X147: 373700 | Z147: 58100 | AB147: 49800 | AD147: 43800 | AF147: 103000 | AI147: 110800 | AL147: 140100 | AO147: 162000 | AQ147: 181200 | AS147: 29300 | AV147: 22000 | AY147: 19100
A148: Region of Halton Draft Preferred Growth Concept- Revision (November 3, 2021)
A149: Housing Growth, Population, Employment and Employment Growth by Policy Areas and Local Municipal Sub-Areas
A150: Milton | F150: Housing Unit Growth | O150: Population | Z150: Population Growth | AF150: Employment | AS150: Employment Growth
F151: 2021-31 | I151: 2031-41 | L151: 2041-51 | O151: 2016 | Q151: 2021 | S151: 2031 | U151: 2041 | X151: 2051 | Z151: 2021-31 | AB151: 2031-41 | AD151: 2041-51 | AF151: 2016 | AI151: 2021 | AL151: 2031 | AO151: 2041 | AQ151: 2051 | AS151: 2021-31 | AV151: 2031-41 | AY151: 2041-51
A153: Bristol Community DGA | F153: 260 | I153: 120 | L153: 220 | O153: 15430 | Q153: 16870 | S153: 17490 | U153: 17110 | X153: 17590 | Z153: 610 | AB153: -380 | AD153: 480 | AF153: 1720 | AI153: 2030 | AL153: 2380 | AO153: 2510 | AQ153: 2700 | AS153: 340 | AV153: 140 | AY153: 190
A154: Boyne Community DGA | F154: 6240 | I154: 3250 | L154: 460 | O154: 520 | Q154: 13150 | S154: 35380 | U154: 46870 | X154: 48090 | Z154: 22240 | AB154: 11490 | AD154: 1220 | AF154: 220 | AI154: 270 | AL154: 2400 | AO154: 3890 | AQ154: 4240 | AS154: 2130 | AV154: 1490 | AY154: 340
A155: Sherwood Community DGA | F155: 460 | I155: 380 | L155: 270 | O155: 32420 | Q155: 35990 | S155: 37390 | U155: 36980 | X155: 37590 | Z155: 1400 | AB155: -410 | AD155: 610 | AF155: 3610 | AI155: 5940 | AL155: 6220 | AO155: 6280 | AQ155: 6450 | AS155: 280 | AV155: 60 | AY155: 170
A156: Britannia Secondary Plan Area | F156: 1160 | I156: 7840 | L156: 3170 | O156: 150 | Q156: 160 | S156: 4100 | U156: 35950 | X156: 48070 | Z156: 3940 | AB156: 31860 | AD156: 12120 | AF156: 450 | AI156: 660 | AL156: 990 | AO156: 4280 | AQ156: 5270 | AS156: 330 | AV156: 3280 | AY156: 1000
A157: Trafalgar Secondary Plan Area | F157: 2640 | I157: 3420 | L157: 950 | O157: 190 | Q157: 200 | S157: 9100 | U157: 22400 | X157: 25590 | Z157: 8900 | AB157: 13290 | AD157: 3190 | AF157: 160 | AI157: 240 | AL157: 960 | AO157: 2530 | AQ157: 2980 | AS157: 720 | AV157: 1560 | AY157: 450
A158: Trafalgar GO MTSA Existing DGA Area | F158: 0 | I158: 1030 | L158: 860 | O158: 20 | Q158: 20 | S158: 20 | U158: 3010 | X158: 5130 | Z158: 0 | AB158: 2990 | AD158: 2120 | AF158: 0 | AI158: 0 | AL158: 120 | AO158: 850 | AQ158: 2190 | AS158: 120 | AV158: 730 | AY158: 1340
A159: Education Village | F159: 330 | I159: 970 | L159: 850 | O159: 0 | Q159: 0 | S159: 870 | U159: 3760 | X159: 6000 | Z159: 870 | AB159: 2880 | AD159: 2250 | AF159: 0 | AI159: 0 | AL159: 550 | AO159: 1320 | AQ159: 2300 | AS159: 550 | AV159: 780 | AY159: 980
A160: Agerton Employment Area | F160: 0 | I160: 0 | L160: 0 | O160: 20 | Q160: 20 | S160: 20 | U160: 20 | X160: 20 | Z160: 0 | AB160: 0 | AD160: 0 | AF160: 210 | AI160: 190 | AL160: 2610 | AO160: 5050 | AQ160: 7120 | AS160: 2420 | AV160: 2440 | AY160: 2070
A161: Highway 401 Business Park DGA | F161: 0 | I161: 0 | L161: 0 | O161: 0 | Q161: 0 | S161: 0 | U161: 0 | X161: 0 | Z161: 0 | AB161: 0 | AD161: 0 | AF161: 1830 | AI161: 0 | AL161: 2890 | AO161: 3950 | AQ161: 4470 | AS161: 2890 | AV161: 1050 | AY161: 520
A162: Derry Green Employment Area | F162: 0 | I162: 0 | L162: 0 | O162: 120 | Q162: 120 | S162: 130 | U162: 120 | X162: 120 | Z162: 0 | AB162: 0 | AD162: 0 | AF162: 260 | AI162: 760 | AL162: 8160 | AO162: 11710 | AQ162: 12790 | AS162: 7390 | AV162: 3550 | AY162: 1080
A163: Southwest Employment Area | F163: 0 | I163: 0 | L163: 0 | O163: 50 | Q163: 50 | S163: 50 | U163: 50 | X163: 50 | Z163: 0 | AB163: 0 | AD163: 0 | AF163: 50 | AI163: 0 | AL163: 0 | AO163: 4860 | AQ163: 6540 | AS163: 0 | AV163: 4860 | AY163: 1680
A164: Existing DGA | F164: 11080 | I164: 17000 | L164: 6790 | O164: 48920 | Q164: 66590 | S164: 104550 | U164: 166270 | X164: 188260 | Z164: 37960 | AB164: 61720 | AD164: 21990 | AF164: 8510 | AI164: 10090 | AL164: 27270 | AO164: 47220 | AQ164: 57040 | AS164: 17180 | AV164: 19950 | AY164: 9820
A166: New Community Area East & Southeast | F166: 0 | I166: 0 | L166: 3860 | O166: 250 | Q166: 270 | S166: 270 | U166: 260 | X166: 14640 | Z166: 0 | AB166: -10 | AD166: 14380 | AF166: 0 | AI166: 0 | AL166: 0 | AO166: 0 | AQ166: 1490 | AS166: 0 | AV166: 0 | AY166: 1490
A167: New Community Area South | F167: 0 | I167: 0 | L167: 6800 | O167: 100 | Q167: 100 | S167: 100 | U167: 100 | X167: 25930 | Z167: 0 | AB167: 0 | AD167: 25830 | AF167: 0 | AI167: 0 | AL167: 0 | AO167: 0 | AQ167: 1920 | AS167: 0 | AV167: 0 | AY167: 1920
A168: New Employment Area East & Southeast | F168: 0 | I168: 0 | L168: 30 | O168: 120 | Q168: 130 | S168: 130 | U168: 130 | X168: 230 | Z168: 0 | AB168: 0 | AD168: 110 | AF168: 0 | AI168: 0 | AL168: 0 | AO168: 550 | AQ168: 12720 | AS168: 0 | AV168: 550 | AY168: 12170
A169: New Employment Area Southwest | F169: 0 | I169: 0 | L169: 50 | O169: 240 | Q169: 250 | S169: 250 | U169: 240 | X169: 400 | Z169: 0 | AB169: -10 | AD169: 160 | AF169: 100 | AI169: 150 | AL169: 150 | AO169: 150 | AQ169: 160 | AS169: 0 | AV169: 0 | AY169: 20
A170: New Employment Area Boston Church Road | F170: 0 | I170: 0 | L170: 0 | O170: 20 | Q170: 20 | S170: 20 | U170: 20 | X170: 30 | Z170: 0 | AB170: 0 | AD170: 10 | AF170: 0 | AI170: 0 | AL170: 0 | AO170: 550 | AQ170: 930 | AS170: 0 | AV170: 550 | AY170: 380
A171: New DGA | F171: 0 | I171: 0 | L171: 11190 | O171: 730 | Q171: 760 | S171: 760 | U171: 740 | X171: 42550 | Z171: 0 | AB171: -20 | AD171: 41810 | AF171: 100 | AI171: 150 | AL171: 150 | AO171: 1250 | AQ171: 17450 | AS171: 0 | AV171: 1100 | AY171: 16200
A173: Rural Area East and South | F173: 10 | I173: 10 | L173: 10 | O173: 1320 | Q173: 1370 | S173: 1390 | U173: 1360 | X173: 1380 | Z173: 20 | AB173: -30 | AD173: 20 | AF173: 430 | AI173: 820 | AL173: 850 | AO173: 850 | AQ173: 870 | AS173: 20 | AV173: 0 | AY173: 20
A174: Rural Greenbelt Northeast | F174: 0 | I174: 0 | L174: 0 | O174: 130 | Q174: 140 | S174: 140 | U174: 140 | X174: 140 | Z174: 0 | AB174: 0 | AD174: 0 | AF174: 20 | AI174: 0 | AL174: 0 | AO174: 0 | AQ174: 0 | AS174: 0 | AV174: 0 | AY174: 0
A175: Rural Greenbelt West | F175: 30 | I175: 30 | L175: 30 | O175: 2860 | Q175: 3020 | S175: 3110 | U175: 3100 | X175: 3200 | Z175: 100 | AB175: -10 | AD175: 100 | AF175: 1270 | AI175: 2030 | AL175: 2090 | AO175: 2110 | AQ175: 2160 | AS175: 60 | AV175: 20 | AY175: 50
A176: Rural Greenbelt Northwest | F176: 70 | I176: 70 | L176: 70 | O176: 4070 | Q176: 4340 | S176: 4610 | U176: 4720 | X176: 5010 | Z176: 270 | AB176: 110 | AD176: 290 | AF176: 1330 | AI176: 1010 | AL176: 1040 | AO176: 1050 | AQ176: 1080 | AS176: 30 | AV176: 10 | AY176: 30
A177: Rural | F177: 100 | I177: 100 | L177: 100 | O177: 8390 | Q177: 8870 | S177: 9250 | U177: 9320 | X177: 9730 | Z177: 380 | AB177: 60 | AD177: 410 | AF177: 3050 | AI177: 3860 | AL177: 3970 | AO177: 4010 | AQ177: 4110 | AS177: 110 | AV177: 30 | AY177: 110
A179: Milton Urban Growth Centre | F179: 2170 | I179: 2630 | L179: 2690 | O179: 1830 | Q179: 2500 | S179: 6800 | U179: 12060 | X179: 17690 | Z179: 4300 | AB179: 5260 | AD179: 5630 | AF179: 4220 | AI179: 5470 | AL179: 8790 | AO179: 12930 | AQ179: 17230 | AS179: 3330 | AV179: 4130 | AY179: 4310
A180: Meritor & Bronte-Main Lands | F180: 790 | I180: 320 | L180: 0 | O180: 0 | Q180: 0 | S180: 1630 | U180: 2480 | X180: 2480 | Z180: 1630 | AB180: 850 | AD180: 0 | AF180: 350 | AI180: 300 | AL180: 240 | AO180: 390 | AQ180: 460 | AS180: -60 | AV180: 150 | AY180: 80
A181: BUA Centres | F181: 2960 | I181: 2950 | L181: 2690 | O181: 1830 | Q181: 2500 | S181: 8430 | U181: 14540 | X181: 20180 | Z181: 5930 | AB181: 6110 | AD181: 5630 | AF181: 4570 | AI181: 5770 | AL181: 9030 | AO181: 13310 | AQ181: 17700 | AS181: 3260 | AV181: 4280 | AY181: 4380
A183: Ontario Street Corridor | F183: 190 | I183: 160 | L183: 210 | O183: 0 | Q183: 0 | S183: 470 | U183: 890 | X183: 1430 | Z183: 470 | AB183: 420 | AD183: 550 | AF183: 0 | AI183: 0 | AL183: 600 | AO183: 1210 | AQ183: 1930 | AS183: 600 | AV183: 610 | AY183: 720
A184: Steeles Avenue Corridor | F184: 180 | I184: 180 | L184: 200 | O184: 0 | Q184: 0 | S184: 430 | U184: 900 | X184: 1430 | Z184: 430 | AB184: 470 | AD184: 530 | AF184: 0 | AI184: 0 | AL184: 600 | AO184: 1210 | AQ184: 1930 | AS184: 600 | AV184: 620 | AY184: 720
A185: James Snow Parkway Corridor | F185: 140 | I185: 150 | L185: 160 | O185: 0 | Q185: 0 | S185: 310 | U185: 680 | X185: 1090 | Z185: 310 | AB185: 370 | AD185: 410 | AF185: 0 | AI185: 0 | AL185: 80 | AO185: 180 | AQ185: 290 | AS185: 80 | AV185: 110 | AY185: 100
A186: Derry Road Corridor | F186: 0 | I186: 30 | L186: 0 | O186: 0 | Q186: 0 | S186: 0 | U186: 70 | X186: 70 | Z186: 0 | AB186: 70 | AD186: 0 | AF186: 0 | AI186: 0 | AL186: 70 | AO186: 150 | AQ186: 240 | AS186: 70 | AV186: 80 | AY186: 90
A187: Highway 25 Corridor | F187: 0 | I187: 0 | L187: 0 | O187: 0 | Q187: 0 | S187: 0 | U187: 0 | X187: 0 | Z187: 0 | AB187: 0 | AD187: 0 | AF187: 0 | AI187: 0 | AL187: 150 | AO187: 290 | AQ187: 470 | AS187: 150 | AV187: 140 | AY187: 170
A188: BUA Corridors | F188: 510 | I188: 510 | L188: 570 | O188: 0 | Q188: 0 | S188: 1210 | U188: 2530 | X188: 4030 | Z188: 1210 | AB188: 1320 | AD188: 1490 | AF188: 0 | AI188: 0 | AL188: 1490 | AO188: 3050 | AQ188: 4860 | AS188: 1490 | AV188: 1560 | AY188: 1810
A190: Old Milton West | F190: 380 | I190: 390 | L190: 490 | O190: 6130 | Q190: 6830 | S190: 7900 | U190: 8840 | X190: 10330 | Z190: 1070 | AB190: 940 | AD190: 1490 | AF190: 2040 | AI190: 2270 | AL190: 2380 | AO190: 2380 | AQ190: 2540 | AS190: 100 | AV190: 0 | AY190: 160
A191: Old Milton East | F191: 350 | I191: 370 | L191: 470 | O191: 5540 | Q191: 6400 | S191: 7380 | U191: 8300 | X191: 9750 | Z191: 980 | AB191: 920 | AD191: 1440 | AF191: 1140 | AI191: 1210 | AL191: 1280 | AO191: 1290 | AQ191: 1530 | AS191: 70 | AV191: 0 | AY191: 240
A192: Old Milton North Community Area | F192: 330 | I192: 360 | L192: 450 | O192: 6850 | Q192: 7400 | S192: 8350 | U192: 9190 | X192: 10580 | Z192: 950 | AB192: 840 | AD192: 1390 | AF192: 1110 | AI192: 1500 | AL192: 1800 | AO192: 1950 | AQ192: 2260 | AS192: 300 | AV192: 150 | AY192: 310
A193: Bristol Community Area BUA | F193: 170 | I193: 280 | L193: 280 | O193: 34980 | Q193: 37510 | S193: 37920 | U193: 37190 | X193: 38040 | Z193: 410 | AB193: -730 | AD193: 850 | AF193: 3440 | AI193: 4080 | AL193: 4380 | AO193: 4580 | AQ193: 4970 | AS193: 300 | AV193: 200 | AY193: 390
A194: Bronte Street Triangle Employment Area | F194: 0 | I194: 0 | L194: 0 | O194: 0 | Q194: 0 | S194: 0 | U194: 0 | X194: 0 | Z194: 0 | AB194: 0 | AD194: 0 | AF194: 20 | AI194: 30 | AL194: 30 | AO194: 30 | AQ194: 30 | AS194: 0 | AV194: 0 | AY194: 0
A195: Highway 401 Employment Area BUA | F195: 0 | I195: 0 | L195: 0 | O195: 210 | Q195: 220 | S195: 220 | U195: 220 | X195: 220 | Z195: 0 | AB195: 0 | AD195: 10 | AF195: 14140 | AI195: 13970 | AL195: 14600 | AO195: 14800 | AQ195: 15270 | AS195: 620 | AV195: 210 | AY195: 460
A196: BUA General | F196: 1230 | I196: 1410 | L196: 1700 | O196: 54410 | Q196: 59270 | S196: 62680 | U196: 64620 | X196: 69790 | Z196: 3410 | AB196: 1930 | AD196: 5180 | AF196: 23250 | AI196: 24530 | AL196: 26260 | AO196: 27070 | AQ196: 28980 | AS196: 1730 | AV196: 810 | AY196: 1910
A198: Milton Total | F198: 15900 | I198: 22000 | L198: 23000 | O198: 114300 | Q198: 138000 | S198: 186900 | U198: 258000 | X198: 334500 | Z198: 48900 | AB198: 71100 | AD198: 76500 | AF198: 39500 | AI198: 44400 | AL198: 68200 | AO198: 95900 | AQ198: 130100 | AS198: 23800 | AV198: 27700 | AY198: 34200
A199: Region of Halton Draft Preferred Growth Concept- Revision (November 3, 2021)
A200: Housing Growth, Population, Employment and Employment Growth by Policy Areas and Local Municipal Sub-Areas
A201: Halton Hills | E201: Housing Unit Growth | N201: Population | AA201: Population Growth | AH201: Employment | AT201: Employment Growth
E202: 2021-31 | H202: 2031-41 | K202: 2041-51 | N202: 2016 | Q202: 2021 | S202: 2031 | V202: 2041 | Y202: 2051 | AA202: 2021-31 | AC202: 2031-41 | AE202: 2041-51 | AH202: 2016 | AK202: 2021 | AN202: 2031 | AP202: 2041 | AR202: 2051 | AT202: 2021-31 | AW202: 2031-41 | AZ202: 2041-51
A204: Acton DGA | E204: 20 | H204: 0 | K204: 10 | N204: 70 | Q204: 80 | S204: 140 | V204: 160 | Y204: 170 | AA204: 70 | AC204: 10 | AE204: 20 | AH204: 40 | AK204: 0 | AN204: 60 | AP204: 280 | AR204: 410 | AT204: 60 | AW204: 230 | AZ204: 130
A205: South Georgetown DGA | E205: 90 | H205: 30 | K205: 0 | N205: 4950 | Q205: 6270 | S205: 6570 | V205: 6500 | Y205: 6530 | AA205: 310 | AC205: -70 | AE205: 30 | AH205: 620 | AK205: 430 | AN205: 520 | AP205: 860 | AR205: 1160 | AT205: 90 | AW205: 340 | AZ205: 300
A206: Stewarttown DGA | E206: 20 | H206: 20 | K206: 0 | N206: 400 | Q206: 400 | S206: 480 | V206: 550 | Y206: 550 | AA206: 80 | AC206: 70 | AE206: 0 | AH206: 40 | AK206: 0 | AN206: 10 | AP206: 10 | AR206: 10 | AT206: 10 | AW206: 10 | AZ206: 0
A207: Southwest Georgetown Community Area DGA | E207: 3280 | H207: 1890 | K207: 1380 | N207: 70 | Q207: 80 | S207: 10520 | V207: 16900 | Y207: 21340 | AA207: 10450 | AC207: 6370 | AE207: 4440 | AH207: 10 | AK207: 10 | AN207: 1040 | AP207: 2000 | AR207: 2670 | AT207: 1030 | AW207: 960 | AZ207: 680
A208: Southeast Georgetown DGA | E208: 670 | H208: 310 | K208: 50 | N208: 10 | Q208: 10 | S208: 2050 | V208: 3100 | Y208: 3220 | AA208: 2050 | AC208: 1050 | AE208: 110 | AH208: 10 | AK208: 0 | AN208: 190 | AP208: 290 | AR208: 470 | AT208: 190 | AW208: 100 | AZ208: 180
A209: Acton DGA Employment | E209: 0 | H209: 0 | K209: 0 | N209: 0 | Q209: 0 | S209: 0 | V209: 0 | Y209: 0 | AA209: 0 | AC209: 0 | AE209: 0 | AH209: 40 | AK209: 0 | AN209: 180 | AP209: 370 | AR209: 450 | AT209: 180 | AW209: 190 | AZ209: 80
A210: Mansewood Employment Area | E210: 0 | H210: 0 | K210: 0 | N210: 0 | Q210: 0 | S210: 0 | V210: 0 | Y210: 0 | AA210: 0 | AC210: 0 | AE210: 0 | AH210: 180 | AK210: 110 | AN210: 160 | AP210: 160 | AR210: 160 | AT210: 40 | AW210: 0 | AZ210: 0
A211: Premier Gateway Business Park | E211: 0 | H211: 0 | K211: 0 | N211: 150 | Q211: 150 | S211: 160 | V211: 160 | Y211: 160 | AA211: 0 | AC211: 0 | AE211: 0 | AH211: 2030 | AK211: 4060 | AN211: 13050 | AP211: 19080 | AR211: 22030 | AT211: 8980 | AW211: 6040 | AZ211: 2950
A212: Existing DGA | E212: 4070 | H212: 2260 | K212: 1440 | N212: 5640 | Q212: 6980 | S212: 19940 | V212: 27370 | Y212: 31970 | AA212: 12960 | AC212: 7430 | AE212: 4600 | AH212: 2970 | AK212: 4620 | AN212: 15190 | AP212: 23050 | AR212: 27370 | AT212: 10570 | AW212: 7860 | AZ212: 4320
A213: 0
A214: Community Area | E214: 0 | H214: 1680 | K214: 3810 | N214: 0 | Q214: 0 | S214: 0 | V214: 6490 | Y214: 19890 | AA214: 0 | AC214: 6490 | AE214: 13390 | AH214: 0 | AK214: 0 | AN214: 0 | AP214: 620 | AR214: 2420 | AT214: 0 | AW214: 620 | AZ214: 1810
A215: Mansewood FSEA | E215: 0 | H215: 0 | K215: 0 | N215: 180 | Q215: 180 | S215: 180 | V215: 180 | Y215: 180 | AA215: 0 | AC215: 0 | AE215: 0 | AH215: 0 | AK215: 0 | AN215: 0 | AP215: 0 | AR215: 0 | AT215: 0 | AW215: 0 | AZ215: 0
A216: Highway 401-GTA West FSEA | E216: 0 | H216: 0 | K216: 0 | N216: 260 | Q216: 260 | S216: 260 | V216: 260 | Y216: 270 | AA216: 0 | AC216: 0 | AE216: 10 | AH216: 0 | AK216: 0 | AN216: 0 | AP216: 2040 | AR216: 11600 | AT216: 0 | AW216: 2040 | AZ216: 9560
A217: New DGA | E217: 0 | H217: 1680 | K217: 3810 | N217: 440 | Q217: 440 | S217: 440 | V217: 6940 | Y217: 20340 | AA217: 0 | AC217: 6500 | AE217: 13400 | AH217: 0 | AK217: 0 | AN217: 0 | AP217: 2660 | AR217: 14030 | AT217: 0 | AW217: 2660 | AZ217: 11370
A219: Glen Williams | E219: 50 | H219: 50 | K219: 40 | N219: 1820 | Q219: 1940 | S219: 2120 | V219: 2250 | Y219: 2400 | AA219: 180 | AC219: 130 | AE219: 150 | AH219: 280 | AK219: 250 | AN219: 260 | AP219: 280 | AR219: 300 | AT219: 20 | AW219: 20 | AZ219: 10
A220: Rural Greenbelt | E220: 60 | H220: 60 | K220: 60 | N220: 5640 | Q220: 5850 | S220: 6070 | V220: 6110 | Y220: 6380 | AA220: 220 | AC220: 50 | AE220: 270 | AH220: 1590 | AK220: 1410 | AN220: 1430 | AP220: 1440 | AR220: 1470 | AT220: 20 | AW220: 20 | AZ220: 20
A221: Rural PSA & WB | E221: 10 | H221: 10 | K221: 10 | N221: 1630 | Q221: 1660 | S221: 1690 | V221: 1680 | Y221: 1730 | AA221: 40 | AC221: -10 | AE221: 50 | AH221: 1150 | AK221: 950 | AN221: 960 | AP221: 960 | AR221: 960 | AT221: 0 | AW221: 0 | AZ221: 0
A222: Rural | E222: 120 | H222: 120 | K222: 110 | N222: 9100 | Q222: 9440 | S222: 9880 | V222: 10040 | Y222: 10510 | AA222: 440 | AC222: 160 | AE222: 470 | AH222: 3010 | AK222: 2610 | AN222: 2650 | AP222: 2680 | AR222: 2730 | AT222: 40 | AW222: 30 | AZ222: 40
A224: Acton GO MTSA | E224: 130 | H224: 190 | K224: 190 | N224: 1290 | Q224: 1340 | S224: 1590 | V224: 1960 | Y224: 2390 | AA224: 250 | AC224: 380 | AE224: 430 | AH224: 460 | AK224: 380 | AN224: 380 | AP224: 390 | AR224: 440 | AT224: 0 | AW224: 10 | AZ224: 40
A225: Georgetown GO MTSA | E225: 460 | H225: 650 | K225: 640 | N225: 4380 | Q225: 4430 | S225: 5270 | V225: 6460 | Y225: 7800 | AA225: 830 | AC225: 1200 | AE225: 1330 | AH225: 1050 | AK225: 840 | AN225: 920 | AP225: 1370 | AR225: 1940 | AT225: 80 | AW225: 460 | AZ225: 570
A226: BUA Centres | E226: 580 | H226: 840 | K226: 820 | N226: 5670 | Q226: 5770 | S226: 6860 | V226: 8430 | Y226: 10190 | AA226: 1080 | AC226: 1570 | AE226: 1760 | AH226: 1510 | AK226: 1220 | AN226: 1300 | AP226: 1770 | AR226: 2380 | AT226: 70 | AW226: 470 | AZ226: 610
A228: Guelph Street | E228: 220 | H228: 310 | K228: 310 | N228: 0 | Q228: 0 | S228: 430 | V228: 1120 | Y228: 1790 | AA228: 430 | AC228: 690 | AE228: 680 | AH228: 0 | AK228: 0 | AN228: 40 | AP228: 270 | AR228: 560 | AT228: 40 | AW228: 230 | AZ228: 290
A229: Maple Avenue | E229: 10 | H229: 10 | K229: 20 | N229: 0 | Q229: 0 | S229: 30 | V229: 80 | Y229: 130 | AA229: 30 | AC229: 50 | AE229: 50 | AH229: 0 | AK229: 0 | AN229: 0 | AP229: 10 | AR229: 10 | AT229: 0 | AW229: 0 | AZ229: 0
... 7 more rows
